Cogmind - Beta 13 @@@ ROGUE MODE // 2024.04.05 @ 20:46:42 Player: misiasty3 Result: Destroyed by S-27 Virus with Autogun Performance ------------- Evolutions (3) 1500 Regions Visited (5) 1000 Robots Destroyed (57) 285 Value Destroyed (1981) 1981 Prototype IDs (0) 0 Alien Tech Used (0) 0 Bonus (200) 200 TOTAL SCORE: 4966 Bonus ------- Entered Garrisons 200 Cogmind --------- Core Integrity 0/700 Matter 153/300 Energy 69/100 System Corruption 7% Temperature Cool (0) Movement Core (750) Ox14 Location -7/Garrison Parts ------- > --- POWER (2) -------- (None) > --- PROPULSION (3) --- (None) > --- UTILITY (6) ------ Large Storage Unit Large Storage Unit > --- WEAPON (2) ------- Gauss Rifle > --- INVENTORY (15) --- Heat Sink Targeting Computer Ion Cannon Flak Gun Gauss Cannon Peak State ------------ > --- POWER ------------ Deuterium Engine Light Nuclear Core > --- PROPULSION ------- Light Treads Light Treads Light Treads > --- UTILITY ---------- Large Storage Unit Sensor Array Reflective Plating Improved Shield Generator System Shield Improved Field Recycling Unit > --- WEAPON ----------- Flak Gun Heavy Missile Launcher > --- INVENTORY -------- Light Treads Heat Sink Large Storage Unit Targeting Computer Gatling Laser Ion Cannon Heavy Assault Rifle Gauss Rifle Gauss Cannon [Rating: 35] Favorites ----------- Power Deuterium Engine Engine Deuterium Engine Power Core Light Nuclear Core Propulsion Light Treads Treads Light Treads Leg Carbon-fiber Leg Utility Large Storage Unit Device Sensor Array Storage Large Storage Unit Processor Transport Network Coupler Hackware System Shield Protection Heavy Armor Plating Weapon Medium Laser Energy Gun Medium Laser Ballistic Gun High-powered Shotgun Ballistic Cannon Light Cannon Launcher Grenade Launcher Special Weapon Mining Laser Build | -11 -10 -9 -8 -7 -7 ------- Run | Yrd Mat Mat Mat Fac Gar Slots Evolved 6 | . . 2 2 2 . Power 1 | . . . 1 . . Propulsion 1 | . . . . 1 . Utility 4 | . . 2 1 1 . Weapon . | . . . . . . Parts Attached 98 | 7 17 19 23 17 15 Power 8 | 1 1 2 3 . 1 Engine 7 | 1 1 2 3 . . Core 1 | . . . . . 1 Reactor . | . . . . . . Propulsion 13 | 2 . 2 2 1 6 Treads 12 | 2 . 2 2 1 5 Leg 1 | . . . . . 1 Wheel . | . . . . . . Hover . | . . . . . . Flight . | . . . . . . Utility 26 | 1 3 10 5 5 2 Device 9 | . 2 3 2 1 1 Storage 10 | 1 1 6 . 1 1 Processor 1 | . . 1 . . . Hackware 1 | . . . . 1 . Protection 5 | . . . 3 2 . Artifact . | . . . . . . Weapon 51 | 3 13 5 13 11 6 Energy Gun 12 | 1 4 2 3 1 1 Energy Cannon . | . . . . . . Ballistic Gun 21 | 2 2 1 5 7 4 Ballistic Cannon 2 | . . 1 . 1 . Launcher 6 | . 3 1 . 1 1 Special Weapon 10 | . 4 . 5 1 . Impact Weapon . | . . . . . . Slashing Weapon . | . . . . . . Piercing Weapon . | . . . . . . Special Melee Weapon . | . . . . . . Unidentified Prototypes . | . . . . . . Parts Lost 22 | . . 1 . . 21 Power 3 | . . 1 . . 2 Propulsion 9 | . . . . . 9 Utility 5 | . . . . . 5 Weapon 5 | . . . . . 5 Highest Loss Streak 10 | . . 1 . . 10 To Critical Strikes . | . . . . . . Average Slot Usage (%) 87 | . 99 99 84 83 66 Engine 9 | . 14 11 9 7 4 Treads 21 | . 28 22 18 23 14 Device 16 | . 13 21 16 15 12 Storage 10 | . 14 16 9 7 12 Processor 1 | . . 5 3 . . Protection 7 | . . . 9 14 3 Energy Gun 8 | . 16 13 10 1 2 Ballistic Gun 7 | . 4 6 6 12 5 Launcher 1 | . 3 . . . 3 Naked Turns . | . . . . . . Heaviest Build 81 | 14 31 50 57 59 81 Greatest Support 60 | 40 40 40 40 60 60 Greatest Overweight (x) 16 | . . 1 1 . 16 Average Overweight (x) . | . . . . . 2 Largest Inventory Capacity 15 | 8 15 15 15 15 15 Average Capacity 13 | 6 9 15 15 15 15 Most Carried 15 | 4 13 15 15 15 13 Average Carried 11 | 2 7 13 14 14 7 Final Capacity 15 | 8 15 15 15 15 15 Final Carried 15 | 4 12 15 15 12 5 Class Distribution -------------------- 69% | Mutant 30% | Scavenger-Mutant Dominant Class ---------------- Mutant | -10/Materials Mutant | -9/Materials Mutant | -8/Materials Mutant | -7/Factory Mutant | -7/Garrison Resources | -11 -10 -9 -8 -7 -7 ----------- Run | Yrd Mat Mat Mat Fac Gar Matter Collected 1526 | 211 192 368 296 150 309 Remotely . | . . . . . . Salvage Created 1808 | . 325 418 510 249 306 Parts 105 | . 22 19 34 10 20 Haulers Intercepted 2 | . . 2 . . . Recyclers Shooed 3 | . . 2 1 . . Parts Field Recycled 3 | . . . . 3 . Retrieved Matter 28 | . . . . 28 . Parts Self-Destructed . | . . . . . . Prevented . | . . . . . . Kills | -11 -10 -9 -8 -7 -7 ------- Run | Yrd Mat Mat Mat Fac Gar Combat Hostiles Destroyed 49 | . 9 7 15 7 11 Melee 2 | . . . . . 2 Guns 36 | . 5 6 15 5 5 Cannons 1 | . . 1 . . . AOE 10 | . 4 . . 2 4 Classes Destroyed 10 | . 3 3 2 1 1 Worker 2 | . 1 . . 1 . Hauler 2 | . . 2 . . . Recycler 2 | . . 1 . 1 . Watcher 2 | . 1 . 1 . . Swarmer 15 | . . . 7 3 5 Grunt 22 | . 9 5 4 2 2 Duelist 1 | . . . . . 1 Sentry 7 | . . 2 3 . 2 Hunter 1 | . . . 1 . . Programmer 3 | . . . . 2 1 Best Kill Streak 6 | . 6 4 5 3 4 Combat Bots Only 5 | . 5 3 5 3 4 Max Kills in Single Turn 3 | . 2 2 2 1 3 Gunslinging 1 | . . 1 1 . . Exploded 3 | . 1 . . 1 3 Melee 1 | . . . . . 1 Uniques/NPCs Destroyed . | . . . . . . Combat | -11 -10 -9 -8 -7 -7 -------- Run | Yrd Mat Mat Mat Fac Gar Hostile Shots Fired 517 | . 45 38 68 38 328 Missed 144 | . 8 11 16 10 99 Damage Taken 4445 | . 478 334 441 396 2796 Core 856 | . 64 48 32 42 670 Absorbed by Shields 462 | . . . 174 147 141 Ignored by Resistances 62 | . . . . 16 46 Core Remaining (%) 89 | 100 74 88 94 . . Volleys Fired 180 | . 50 35 38 24 33 Largest 2 | . 2 2 2 2 2 Hottest 165 | . 100 115 165 100 103 Shots Fired 275 | . 69 57 69 42 38 Gun 233 | . 52 53 60 36 32 Cannon 5 | . . 2 . 3 . Launcher 13 | . 4 2 . 1 6 Special 24 | . 13 . 9 2 . Kinetic 124 | . 17 17 27 39 24 Thermal 138 | . 48 38 42 2 8 Explosive 13 | . 4 2 . 1 6 Electromagnetic . | . . . . . . Robot Hit Streak 19 | . 10 17 19 4 6 Robot Miss Streak 10 | . 4 6 3 10 6 Penetration Max . | . . . . . . Secondary Targets 3 | . 1 1 1 . . Max Gunslinging Chain 1 | . 1 1 1 . . Shots Hit Robots 178 | . 38 42 47 22 29 Core Hits 133 | . 18 30 33 24 28 Critical Kills 1 | . . . . 1 . Critical Parts Destroyed 1 | . . . 1 . . Critical Strikes 11 | . 4 3 3 1 . Burn 9 | . 4 3 2 . . Destroy 2 | . . . 1 1 . Melee Attacks . | . . . . . . Impact . | . . . . . . Slashing . | . . . . . . Piercing . | . . . . . . Sneak Attacks . | . . . . . . Combat Hostiles . | . . . . . . Follow-up Attacks . | . . . . . . Damage Inflicted 3901 | . 690 654 878 655 1024 Guns 2817 | . 420 564 878 399 556 Cannons 34 | . . 34 . . . Explosions 1045 | . 270 56 . 256 463 Melee . | . . . . . . Ramming 5 | . . . . . 5 Kinetic 1546 | . 122 177 470 399 378 Thermal 1402 | . 298 421 408 97 178 Explosive 948 | . 270 56 . 159 463 Electromagnetic . | . . . . . . Impact . | . . . . . . Slashing . | . . . . . . Piercing . | . . . . . . Highest Corruption 7 | . . . . 2 7 Average Corruption 4 | . . . . 1 4 Corruption Purged . | . . . . . . Corruption Blocked . | . . . . . . Effects 12 | . . . . 4 8 Message Errors 4 | . . . . 1 3 Matter Fused 1 | . . . . . 1 Heat Flow Errors 1 | . . . . 1 . Energy Discharges 2 | . . . . . 2 Data Loss (minor) 1 | . . . . . 1 Misfires 1 | . . . . . 1 Weapon Failures 2 | . . . . 2 . Overload Shots . | . . . . . . Overflow Damage 108 | . . . . 63 45 Projectiles . | . . . . . . Explosions 108 | . . . . 63 45 Melee . | . . . . . . Knockbacks . | . . . . . . Impact . | . . . . . . Kinetic . | . . . . . . Secondary . | . . . . . . Self-Inflicted Damage 238 | . 23 14 . 63 138 Shots 6 | . 1 1 . 1 3 Rammed 1 | . . . . . 1 Targets Rammed 2 | . . . . . 2 Kicked . | . . . . . . Crushed 1 | . . . . . 1 Highest Temperature 202 | . 78 69 202 199 58 Average Temperature 41 | . 21 22 55 64 21 Received Heat Transfer 899 | . 273 141 104 24 357 Siege Activations . | . . . . . . Robots Corrupted . | . . . . . . Combat Hostiles . | . . . . . . Parts Fried . | . . . . . . Impact Corruptions . | . . . . . . Robots Melted . | . . . . . . Combat Hostiles . | . . . . . . Parts Melted 3 | . 1 2 . . . Heat Transferred 3703 | . 1172 1045 1061 50 375 Parts Sabotaged . | . . . . . . Parts Stolen . | . . . . . . Parts Stripped . | . . . . . . Power Chain Reactions . | . . . . . . Alert | -11 -10 -9 -8 -7 -7 ------- Run | Yrd Mat Mat Mat Fac Gar Peak Influence 272 | . 264 180 272 254 258 Initial 124 | . . 48 38 123 124 Average 93 | . 71 92 99 85 193 Maximum Alert Level 1 | . 1 . 1 1 1 Low Security (%) 92 | 100 95 100 88 97 56 Level 1 7 | . 4 . 11 2 43 Level 2 . | . . . . . . Level 3 . | . . . . . . Level 4 . | . . . . . . Level 5 . | . . . . . . High Security . | . . . . . . Max Security . | . . . . . . Squads Dispatched 8 | . 4 1 . 3 . Investigation 3 | . 2 1 . . . Extermination 2 | . . . . 2 . Reinforcement 2 | . 2 . . . . Assault . | . . . . . . Garrison 1 | . . . . 1 . Intercept . | . . . . . . Searches Triggered . | . . . . . . Construction Impeded . | . . . . . . Haulers Reinforced . | . . . . . . Active Scanning Responses . | . . . . . . Cargo Convoy Interrupts . | . . . . . . Stealth | -11 -10 -9 -8 -7 -7 --------- Run | Yrd Mat Mat Mat Fac Gar Distress Signals 5 | . 1 2 1 1 . Communications Jammed . | . . . . . . Distress Signals . | . . . . . . Times Spotted 77 | . 10 11 23 13 20 Peak Tracking Total 8 | . 2 3 5 3 8 Tactical Retreats 8 | . 2 . 4 1 1 Traps | -11 -10 -9 -8 -7 -7 ------- Run | Yrd Mat Mat Mat Fac Gar Traps Triggered 4 | . 2 1 . 1 . Indirectly . | . . . . . . Trap Hack Attempts . | . . . . . . Triggered . | . . . . . . Disarmed . | . . . . . . Reprogrammed . | . . . . . . Reused . | . . . . . . Traps Extracted . | . . . . . . Installed . | . . . . . . Triggered . | . . . . . . Machines | -11 -10 -9 -8 -7 -7 ---------- Run | Yrd Mat Mat Mat Fac Gar Machines Disabled 15 | . 1 . 1 13 . Max in Single Turn 5 | . 1 . 1 5 . Machines Repaired . | . . . . . . Machines Dismantled . | . . . . . . Machines Sabotaged . | . . . . . . Overloaded Fab Kills . | . . . . . . Hacking | -11 -10 -9 -8 -7 -7 --------- Run | Yrd Mat Mat Mat Fac Gar Machines Accessed 2 | . 1 . . 1 . Terminals . | . . . . . . Fabricators . | . . . . . . Repair Stations . | . . . . . . Recycling Units 1 | . 1 . . . . Scanalyzers . | . . . . . . Garrison Access 1 | . . . . 1 . Total Hacks 4 | . 3 . . 1 . Successful 2 | . 1 . . 1 . Failed 2 | . 2 . . . . Catastrophic . | . . . . . . Database Lockouts . | . . . . . . Manual . | . . . . . . Terminals . | . . . . . . Fabricators . | . . . . . . Repair Stations . | . . . . . . Recycling Units 3 | . 3 . . . . Scanalyzers . | . . . . . . Garrison Access 1 | . . . . 1 . Terminal Hacks . | . . . . . . Fabricator Hacks . | . . . . . . Repair Station Hacks . | . . . . . . Recycling Unit Hacks 1 | . 1 . . . . Retrieve Components 1 | . 1 . . . . Scanalyzer . | . . . . . . Garrison Access Hacks 1 | . . . . 1 . Unlock Access 1 | . . . . 1 . Unauthorized Hacks . | . . . . . . Terminals . | . . . . . . Fabricators . | . . . . . . Repair Stations . | . . . . . . Recycling Units . | . . . . . . Scanalyzers . | . . . . . . Garrison Access . | . . . . . . Data Cores Recovered . | . . . . . . Used . | . . . . . . Hacking Detections 2 | . 1 . . 1 . Full Trace Events . | . . . . . . Feedback Events . | . . . . . . Feedback Blocked . | . . . . . . Robot Schematics Acquired . | . . . . . . Robots Built . | . . . . . . Authchips . | . . . . . . Time . | . . . . . . Total Robot Build Rating . | . . . . . . Part Schematics Acquired . | . . . . . . Parts Built . | . . . . . . Authchips . | . . . . . . Time . | . . . . . . Total Part Build Rating . | . . . . . . Parts Repaired . | . . . . . . Time . | . . . . . . Parts Recycled . | . . . . . . Recycled Matter . | . . . . . . Retrieved Matter . | . . . . . . Retrieved Components . | . . . . . . Parts Scanalyzed . | . . . . . . Part Schematics Acquired . | . . . . . . Parts Damaged . | . . . . . . Bothacking | -11 -10 -9 -8 -7 -7 ------------ Run | Yrd Mat Mat Mat Fac Gar Used RIF Installer . | . . . . . . Robots Hacked . | . . . . . . Non-combat . | . . . . . . Combat . | . . . . . . Robot Hacks Applied . | . . . . . . Relay Couplers Released . | . . . . . . Fabnet Peak Effective % . | . . . . . . Robots Rewired . | . . . . . . Allies Hacked . | . . . . . . Hacks Repelled . | . . . . . . Allies | -11 -10 -9 -8 -7 -7 -------- Run | Yrd Mat Mat Mat Fac Gar Total Allies . | . . . . . . Largest Group . | . . . . . . Highest-Rated Group . | . . . . . . Highest-Rated Ally . | . . . . . . Total Orders . | . . . . . . Ally Attacks . | . . . . . . Total Damage . | . . . . . . Kills . | . . . . . . Allies Corrupted . | . . . . . . Allies Melted . | . . . . . . Intel | -11 -10 -9 -8 -7 -7 ------- Run | Yrd Mat Mat Mat Fac Gar Robot Analysis Total . | . . . . . . Derelict Logs Recovered . | . . . . . . Drone Launches . | . . . . . . Drone Recoveries . | . . . . . . Exploration | -11 -10 -9 -8 -7 -7 ------------- Run | Yrd Mat Mat Mat Fac Gar Turns Passed 4149 | 110 830 600 996 1271 342 Spaces Moved 1699 | 62 324 222 329 680 82 Core 13 | 6 . . . . 7 Treads 1685 | 56 324 222 329 680 74 Legs 1 | . . . . . 1 Wheels . | . . . . . . Hover . | . . . . . . Flight . | . . . . . . Fastest Speed 50 | 50 160 160 160 160 160 Average Speed 176 | 149 160 162 215 160 278 Slowest Speed 850 | 160 160 240 240 160 850 Overloaded Moves . | . . . . . . Propulsion Burnouts . | . . . . . . Robots Hopped . | . . . . . . Cave-ins Triggered 1 | . . . . . 1 Exploration Rate (%) 21 | 4 40 21 23 18 20 Regions Visited 5 Branch Regions . Pre-discovered Areas . | . . . . . . Known Exits Taken 1 | . . . . 1 . Unknown Exits Taken 4 | 1 1 1 1 . . Scrap Searched . | . . . . . . Spaces Dug 22 | . 13 . 9 . . Terrain Destroyed 169 | . 45 13 9 59 43 Melee . | . . . . . . Projectile 24 | . 13 . 9 2 . AOE 145 | . 32 13 . 57 43 Terrain Rammed . | . . . . . . Walls Destroyed . | . . . . . . Machines Disabled . | . . . . . . Actions | -11 -10 -9 -8 -7 -7 --------- Run | Yrd Mat Mat Mat Fac Gar Total 2524 | 79 536 404 534 818 153 Wait 439 | 1 130 112 110 74 12 Move 1694 | 61 323 221 328 679 82 Hop . | . . . . . . Pick Up 63 | 10 12 9 16 10 6 Fast Attach . | . . . . . . Attach 46 | 6 2 7 6 10 15 Detach 16 | . 1 4 4 4 3 Swap 52 | 1 15 12 17 7 . Drop 32 | . 3 4 15 10 . Fire 180 | . 50 35 38 24 33 Melee . | . . . . . . Ram 1 | . . . . . 1 Kick . | . . . . . . Crush 1 | . . . . . 1 Escape Stasis . | . . . . . . Rewire . | . . . . . . Trap . | . . . . . . Miscellaneous . | . . . . . . Route ------- -11/Scrapyard -10/Materials -9/Materials -8/Materials -7/Factory -7/Garrison History --------- Turn | Location | Event 9 | -11/Scrapyard | Discovered new exit (range 14) 111 | -11/Scrapyard | Entered Materials 300 | -10/Materials | Build established: Mutant 893 | -10/Materials | Discovered new exit (range 15) 941 | -10/Materials | Entered another Materials area 941 | -9/Materials | Evolved 2 slots: Utility x2 1524 | -9/Materials | Discovered new exit (range 3) 1541 | -9/Materials | Entered another Materials area 1541 | -8/Materials | Evolved 2 slots: Power x1, Utility x1 1554 | -8/Materials | Build established: Scavenger-Mutant 2203 | -8/Materials | Build established: Mutant 2482 | -8/Materials | Discovered new exit (range 3) 2537 | -8/Materials | Entered Factory 2537 | -7/Factory | Evolved 2 slots: Propulsion x1, Utility x1 3193 | -7/Factory | Build established: Scavenger-Mutant 3428 | -7/Factory | Garrison activated, responded to threat 3806 | -7/Factory | Identified exit to Garrison 3808 | -7/Factory | Entered Garrison 3864 | -7/Garrison | Build established: Mutant 3870 | -7/Garrison | Crushed by falling debris 3901 | -7/Garrison | Lost 4 parts (1p1n1u1w) 3974 | -7/Garrison | Triggered checkpoint 3986 | -7/Garrison | Triggered checkpoint 4022 | -7/Garrison | Core integrity fell below 50% 4043 | -7/Garrison | Lost 10 parts (1p3n4u2w) 4058 | -7/Garrison | Triggered checkpoint 4142 | -7/Garrison | Core integrity fell below 20% 4150 | -7/Garrison | Destroyed by S-27 Virus with Autogun Last Messages --------------- 04069_ Lgt. Treads destroyed. 04073_ Destroyed Shock Rifle. 04073_ P-60 Hacker destroyed. 04084_ Acquired Lgt. Treads. 04104_ The unstable cave ceiling collapses. 04106_ %8%T/0PR%ZFF8A|FS|<, 04106_ Acquired Flak Gun. 04113_ The unstable cave ceiling collapses. 04119_ Acquired 32 matter. 04122_ Acquired 60 matter. 04129_ Acquired 25 matter. 04134_ Acquired 9 matter. 04134_ Hvy. Assault Rifle destroyed. 04136_ S-27 Virus destroyed. 04137_ Carbon-fiber Leg destroyed. 04139_ Lgt. Treads destroyed. 04142_ 4 A0OZO VWG=QV0 T,JCG